[Event "Live Chess"]
[Site "Chess.com"]
[Date "2024.06.01"]
[Round "-"]
[White "Demyan7777"]
[Black "educatedlad"]
[Result "1-0"]
[WhiteElo "1884"]
[BlackElo "1758"]
[TimeControl "300"]
[EndTime "12:31:38 PDT"]
[Termination "Demyan7777 won by checkmate"]

1. e4 {[%clk 0:04:57.6]} 1... Nf6 {[%clk 0:04:59.3]} 2. Nc3 {[%clk 0:04:55.7]}
2... c6 {[%clk 0:04:57.6]} 3. e5 {[%clk 0:04:53.4]} 3... Ng8 {[%clk 0:04:55.5]}
4. d4 {[%clk 0:04:51.9]} 4... d5 {[%clk 0:04:54.7]} 5. f4 {[%clk 0:04:50.1]}
5... Bf5 {[%clk 0:04:52.9]} 6. Bd3 {[%clk 0:04:47.5]} 6... Bxd3 {[%clk
0:04:51.4]} 7. Qxd3 {[%clk 0:04:46.5]} 7... e6 {[%clk 0:04:51.2]} 8. Nf3 {[%clk
0:04:45]} 8... Nd7 {[%clk 0:04:49.3]} 9. Bd2 {[%clk 0:04:40.7]} 9... Ne7 {[%clk
0:04:48.8]} 10. Ne2 {[%clk 0:04:38.8]} 10... Nf5 {[%clk 0:04:47.3]} 11. c4
{[%clk 0:04:36.4]} 11... dxc4 {[%clk 0:04:45.7]} 12. Qxc4 {[%clk 0:04:34.1]}
12... Nb6 {[%clk 0:04:44.8]} 13. Qb3 {[%clk 0:04:29]} 13... c5 {[%clk
0:04:39.7]} 14. dxc5 {[%clk 0:04:26.1]} 14... Bxc5 {[%clk 0:04:39.6]} 15. Qb5+
{[%clk 0:04:25.1]} 15... Nd7 {[%clk 0:04:37.1]} 16. Bb4 {[%clk 0:04:14.7]} 16...
a6 {[%clk 0:04:35.5]} 17. Qa4 {[%clk 0:04:11.2]} 17... Bxb4+ {[%clk 0:04:33.2]}
18. Qxb4 {[%clk 0:04:10.1]} 18... Ne3 {[%clk 0:04:26.4]} 19. Rc1 {[%clk
0:03:15.2]} 19... Nxg2+ {[%clk 0:04:19.3]} 20. Kf2 {[%clk 0:03:13.5]} 20... Nh4
{[%clk 0:04:14.9]} 21. Rhd1 {[%clk 0:03:02.2]} 21... Nxf3 {[%clk 0:04:12.3]} 22.
Kxf3 {[%clk 0:03:01.4]} 22... Qe7 {[%clk 0:03:59.8]} 23. Qxe7+ {[%clk
0:02:57.9]} 23... Kxe7 {[%clk 0:03:58.3]} 24. Rc7 {[%clk 0:02:57.1]} 24... Rhd8
{[%clk 0:03:54]} 25. Rxb7 {[%clk 0:02:56.1]} 25... Rab8 {[%clk 0:03:51.6]} 26.
Rdxd7+ {[%clk 0:02:54.1]} 26... Rxd7 {[%clk 0:03:48.5]} 27. Rxb8 {[%clk
0:02:53.4]} 27... Rd2 {[%clk 0:03:47]} 28. Ke3 {[%clk 0:02:51.5]} 28... Rd1
{[%clk 0:03:43.6]} 29. a4 {[%clk 0:02:45.6]} 29... Rh1 {[%clk 0:03:31.2]} 30.
Rb7+ {[%clk 0:02:41.8]} 30... Ke8 {[%clk 0:03:28.8]} 31. Rb6 {[%clk 0:02:40.1]}
31... Rxh2 {[%clk 0:03:26.7]} 32. Rxa6 {[%clk 0:02:39]} 32... Rh3+ {[%clk
0:03:25.1]} 33. Kd2 {[%clk 0:02:33.3]} 33... Rb3 {[%clk 0:03:23.7]} 34. Kc2
{[%clk 0:02:32.4]} 34... Re3 {[%clk 0:03:22.3]} 35. Nc3 {[%clk 0:02:30.8]} 35...
Rf3 {[%clk 0:03:20.7]} 36. a5 {[%clk 0:02:28.1]} 36... Rxf4 {[%clk 0:03:19.6]}
37. Rd6 {[%clk 0:02:26.1]} 37... h5 {[%clk 0:03:18.7]} 38. a6 {[%clk 0:02:25]}
38... Rf2+ {[%clk 0:03:15.8]} 39. Kb3 {[%clk 0:02:23.1]} 39... Rf1 {[%clk
0:03:13.7]} 40. a7 {[%clk 0:02:21.9]} 40... Ra1 {[%clk 0:03:12.7]} 41. Na2
{[%clk 0:02:21.6]} 41... Rxa2 {[%clk 0:03:09.3]} 42. Kxa2 {[%clk 0:02:20.4]}
42... Ke7 {[%clk 0:03:09]} 43. a8=Q {[%clk 0:02:18.4]} 43... h4 {[%clk
0:03:08.9]} 44. Qd8# {[%clk 0:02:17.5]} 1-0

[Event "Live Chess"]
[Site "Chess.com"]
[Date "2024.06.01"]
[Round "-"]
[White "Plato_77"]
[Black "JohanKjeldahl"]
[Result "1/2-1/2"]
[WhiteElo "1305"]
[BlackElo "1812"]
[TimeControl "300"]
[EndTime "12:31:41 PDT"]
[Termination "Game drawn by stalemate"]

1. e4 {[%clk 0:04:53.1]} 1... c5 {[%clk 0:04:58.1]} 2. Nf3 {[%clk 0:04:51.8]}
2... e6 {[%clk 0:04:57.1]} 3. d4 {[%clk 0:04:50.7]} 3... cxd4 {[%clk 0:04:56.1]}
4. Nxd4 {[%clk 0:04:50.4]} 4... Nc6 {[%clk 0:04:55.2]} 5. Nc3 {[%clk 0:04:48.6]}
5... Nf6 {[%clk 0:04:52.8]} 6. a3 {[%clk 0:04:47.3]} 6... a6 {[%clk 0:04:50.7]}
7. Nxc6 {[%clk 0:04:45]} 7... bxc6 {[%clk 0:04:48.4]} 8. e5 {[%clk 0:04:44.5]}
8... Nd5 {[%clk 0:04:47.4]} 9. Ne4 {[%clk 0:04:42.5]} 9... f5 {[%clk 0:04:38.8]}
10. Nd6+ {[%clk 0:04:38.6]} 10... Bxd6 {[%clk 0:04:37.4]} 11. exd6 {[%clk
0:04:38.1]} 11... O-O {[%clk 0:04:33.9]} 12. c4 {[%clk 0:04:37.2]} 12... Nf6
{[%clk 0:04:29.2]} 13. Be2 {[%clk 0:04:34]} 13... Qa5+ {[%clk 0:04:27.1]} 14. b4
{[%clk 0:04:30.1]} 14... Qe5 {[%clk 0:04:24]} 15. Ra2 {[%clk 0:04:27.5]} 15...
Ng4 {[%clk 0:04:15.5]} 16. h3 {[%clk 0:04:22.5]} 16... Nf6 {[%clk 0:04:10.6]}
17. O-O {[%clk 0:04:20.9]} 17... c5 {[%clk 0:04:07.7]} 18. Re1 {[%clk
0:04:18.1]} 18... Bb7 {[%clk 0:04:01.9]} 19. Bf3 {[%clk 0:04:15.4]} 19... Bxf3
{[%clk 0:03:56]} 20. gxf3 {[%clk 0:04:08.7]} 20... Qd4 {[%clk 0:03:49.7]} 21.
Qxd4 {[%clk 0:04:06.2]} 21... cxd4 {[%clk 0:03:48.6]} 22. c5 {[%clk 0:04:04.9]}
22... a5 {[%clk 0:03:43.9]} 23. b5 {[%clk 0:04:01]} 23... Rfc8 {[%clk
0:03:39.7]} 24. Rc2 {[%clk 0:03:51.4]} 24... Ne8 {[%clk 0:03:22.7]} 25. Bf4
{[%clk 0:03:44.7]} 25... g5 {[%clk 0:03:18.8]} 26. Bxg5 {[%clk 0:03:40.8]} 26...
Nxd6 {[%clk 0:03:17.6]} 27. a4 {[%clk 0:03:20.9]} 27... Kf7 {[%clk 0:03:02]} 28.
Rec1 {[%clk 0:03:17.6]} 28... d3 {[%clk 0:02:56.3]} 29. Rc3 {[%clk 0:03:11.9]}
29... d2 {[%clk 0:02:53.3]} 30. Bxd2 {[%clk 0:03:08.1]} 30... Rg8+ {[%clk
0:02:47.8]} 31. Kf1 {[%clk 0:03:03.2]} 31... Ne8 {[%clk 0:02:45.2]} 32. c6
{[%clk 0:02:58.1]} 32... dxc6 {[%clk 0:02:42.8]} 33. Rxc6 {[%clk 0:02:56.3]}
33... Nf6 {[%clk 0:02:40.1]} 34. Rc7+ {[%clk 0:02:52.7]} 34... Kg6 {[%clk
0:02:38.9]} 35. Ke2 {[%clk 0:02:35.2]} 35... Nd5 {[%clk 0:02:35.8]} 36. Rg1+
{[%clk 0:02:33]} 36... Kf6 {[%clk 0:02:33.8]} 37. Rxg8 {[%clk 0:02:31.2]} 37...
Rxg8 {[%clk 0:02:32.2]} 38. Rxh7 {[%clk 0:02:30.8]} 38... Ra8 {[%clk 0:02:13.8]}
39. Kd3 {[%clk 0:02:00.9]} 39... Ke5 {[%clk 0:02:06.9]} 40. Be3 {[%clk
0:01:52.5]} 40... f4 {[%clk 0:02:01.4]} 41. Bd4+ {[%clk 0:01:46.1]} 41... Kf5
{[%clk 0:02:00]} 42. b6 {[%clk 0:01:42.4]} 42... Nb4+ {[%clk 0:01:50.1]} 43. Kc4
{[%clk 0:01:31.2]} 43... e5 {[%clk 0:01:48.8]} 44. b7 {[%clk 0:01:26.9]} 44...
Rd8 {[%clk 0:01:32.5]} 45. Ba7 {[%clk 0:01:23]} 45... Nc6 {[%clk 0:01:30.9]} 46.
Bb6 {[%clk 0:01:09.1]} 46... Rb8 {[%clk 0:01:29.6]} 47. Kb5 {[%clk 0:01:06.4]}
47... Nd4+ {[%clk 0:01:24.3]} 48. Ka6 {[%clk 0:00:52]} 48... Nc6 {[%clk
0:01:16.4]} 49. Bc7 {[%clk 0:00:45.5]} 49... Rf8 {[%clk 0:01:11.4]} 50. Kb6
{[%clk 0:00:28]} 50... Rf6 {[%clk 0:01:08.7]} 51. Rf7 {[%clk 0:00:19.9]} 51...
Rxf7 {[%clk 0:01:03.6]} 52. Kxc6 {[%clk 0:00:19.5]} 52... Rf8 {[%clk 0:01:00.3]}
53. b8=Q {[%clk 0:00:18.2]} 53... Rxb8 {[%clk 0:00:58.3]} 54. Bxb8 {[%clk
0:00:17.4]} 54... e4 {[%clk 0:00:56.7]} 55. fxe4+ {[%clk 0:00:16.8]} 55... Kxe4
{[%clk 0:00:55.8]} 56. Ba7 {[%clk 0:00:15.4]} 56... f3 {[%clk 0:00:52.8]} 57.
Kb5 {[%clk 0:00:14.4]} 57... Kf4 {[%clk 0:00:46.5]} 58. Kxa5 {[%clk 0:00:14.2]}
58... Kg5 {[%clk 0:00:45.4]} 59. Kb5 {[%clk 0:00:13.3]} 59... Kh4 {[%clk
0:00:44.5]} 60. Be3 {[%clk 0:00:12.3]} 60... Kxh3 {[%clk 0:00:43.4]} 61. a5
{[%clk 0:00:11.7]} 61... Kg2 {[%clk 0:00:42.6]} 62. a6 {[%clk 0:00:11.1]} 62...
Kf1 {[%clk 0:00:40.9]} 63. a7 {[%clk 0:00:10.6]} 63... Ke2 {[%clk 0:00:40]} 64.
a8=Q {[%clk 0:00:09.7]} 64... Kd3 {[%clk 0:00:36.2]} 65. Qxf3 {[%clk 0:00:09]}
65... Kc2 {[%clk 0:00:33.3]} 66. Qe4+ {[%clk 0:00:07.7]} 66... Kb3 {[%clk
0:00:29.4]} 67. f4 {[%clk 0:00:07.2]} 67... Kb2 {[%clk 0:00:26.5]} 68. Bg1
{[%clk 0:00:06.6]} 68... Kc3 {[%clk 0:00:24]} 69. Qd4+ {[%clk 0:00:05.5]} 69...
Kc2 {[%clk 0:00:22.5]} 70. Qe3 {[%clk 0:00:04.5]} 70... Kd1 {[%clk 0:00:19.6]}
71. f5 {[%clk 0:00:04.4]} 71... Kc2 {[%clk 0:00:17.3]} 72. f6 {[%clk 0:00:04]}
72... Kd1 {[%clk 0:00:16.3]} 73. f7 {[%clk 0:00:03.6]} 73... Kc2 {[%clk
0:00:15.3]} 74. f8=Q {[%clk 0:00:02.8]} 74... Kd1 {[%clk 0:00:14.2]} 75. Qff2
{[%clk 0:00:02.4]} 1/2-1/2

[Event "Live Chess"]
[Site "Chess.com"]
[Date "2024.06.01"]
[Round "-"]
[White "jimwad"]
[Black "PhilMaybury64"]
[Result "0-1"]
[WhiteElo "1232"]
[BlackElo "1413"]
[TimeControl "300"]
[EndTime "12:31:46 PDT"]
[Termination "PhilMaybury64 won on time"]

1. d4 {[%clk 0:04:58.8]} 1... Nf6 {[%clk 0:04:58]} 2. c4 {[%clk 0:04:57.8]} 2...
e5 {[%clk 0:04:56.3]} 3. e3 {[%clk 0:04:53.7]} 3... exd4 {[%clk 0:04:52.6]} 4.
exd4 {[%clk 0:04:45.3]} 4... Bb4+ {[%clk 0:04:35.3]} 5. Bd2 {[%clk 0:04:42.4]}
5... Qe7+ {[%clk 0:04:32.3]} 6. Be2 {[%clk 0:04:38.9]} 6... Nc6 {[%clk
0:04:26.7]} 7. d5 {[%clk 0:04:28.2]} 7... Bxd2+ {[%clk 0:04:06.2]} 8. Qxd2
{[%clk 0:04:20.3]} 8... Ne5 {[%clk 0:04:03.7]} 9. b3 {[%clk 0:04:13.8]} 9... d6
{[%clk 0:03:54.9]} 10. Nc3 {[%clk 0:04:11.6]} 10... Bf5 {[%clk 0:03:50.9]} 11.
Rc1 {[%clk 0:04:05.5]} 11... O-O {[%clk 0:03:46.8]} 12. Kf1 {[%clk 0:03:23.1]}
12... Rfe8 {[%clk 0:03:44.1]} 13. Re1 {[%clk 0:03:13]} 13... Qd7 {[%clk
0:03:40.8]} 14. Nf3 {[%clk 0:03:03.3]} 14... Nxf3 {[%clk 0:03:37.1]} 15. Bxf3
{[%clk 0:03:00.9]} 15... Rxe1+ {[%clk 0:03:35.3]} 16. Qxe1 {[%clk 0:02:59.8]}
16... Re8 {[%clk 0:03:33.2]} 17. Qd2 {[%clk 0:02:57.7]} 17... Bd3+ {[%clk
0:03:25.2]} 18. Be2 {[%clk 0:02:54.1]} 18... Bxe2+ {[%clk 0:03:23.4]} 19. Nxe2
{[%clk 0:02:52.9]} 19... Qe7 {[%clk 0:03:20.4]} 20. f3 {[%clk 0:02:23.7]} 20...
Qe3 {[%clk 0:03:15.4]} 21. Qxe3 {[%clk 0:02:21.8]} 21... Rxe3 {[%clk 0:03:13.9]}
22. Kf2 {[%clk 0:02:21.7]} 22... Re7 {[%clk 0:03:10.9]} 23. Re1 {[%clk
0:02:20.3]} 23... Kf8 {[%clk 0:03:07.1]} 24. Nd4 {[%clk 0:02:18.6]} 24... a6
{[%clk 0:03:02]} 25. Rxe7 {[%clk 0:02:15.5]} 25... Kxe7 {[%clk 0:02:59.3]} 26.
Nf5+ {[%clk 0:02:14.3]} 26... Kf8 {[%clk 0:02:57.9]} 27. g4 {[%clk 0:02:09.4]}
27... g6 {[%clk 0:02:50.8]} 28. Nd4 {[%clk 0:01:58.3]} 28... Ke7 {[%clk
0:02:48.3]} 29. h4 {[%clk 0:01:55.4]} 29... Nd7 {[%clk 0:02:46.1]} 30. f4 {[%clk
0:01:51.4]} 30... Nc5 {[%clk 0:02:42.2]} 31. Ke3 {[%clk 0:01:44.4]} 31... Nd7
{[%clk 0:02:29.5]} 32. f5 {[%clk 0:01:42.5]} 32... Ne5 {[%clk 0:02:21]} 33. Kf4
{[%clk 0:01:34.7]} 33... Nd3+ {[%clk 0:02:13.6]} 34. Kg5 {[%clk 0:01:32.1]}
34... Ne5 {[%clk 0:01:56]} 35. f6+ {[%clk 0:01:21]} 35... Kd7 {[%clk 0:01:51.3]}
36. h5 {[%clk 0:01:19.6]} 36... c5 {[%clk 0:01:41.4]} 37. dxc6+ {[%clk
0:01:11.6]} 37... bxc6 {[%clk 0:01:40.2]} 38. hxg6 {[%clk 0:01:10]} 38... hxg6
{[%clk 0:01:36.1]} 39. Kf4 {[%clk 0:00:35.1]} 39... c5 {[%clk 0:01:32.7]} 40.
Nf3 {[%clk 0:00:30.9]} 40... Nd3+ {[%clk 0:01:31.2]} 41. Ke4 {[%clk 0:00:28.1]}
41... Nc1 {[%clk 0:01:29.9]} 42. Ng5 {[%clk 0:00:22.8]} 42... Nxa2 {[%clk
0:01:20]} 43. Nxf7 {[%clk 0:00:21]} 43... Ke6 {[%clk 0:01:19.3]} 44. Nd8+ {[%clk
0:00:17.1]} 44... Kxf6 {[%clk 0:01:17.9]} 45. Kd5 {[%clk 0:00:16.3]} 45... Kg5
{[%clk 0:01:14]} 46. Kxd6 {[%clk 0:00:14.8]} 46... Kxg4 {[%clk 0:01:13.3]} 47.
Kxc5 {[%clk 0:00:14]} 47... Kf3 {[%clk 0:01:09.9]} 48. Ne6 {[%clk 0:00:12.4]}
48... Nc3 {[%clk 0:01:04.3]} 49. Kb6 {[%clk 0:00:09.2]} 49... Kg4 {[%clk
0:00:49.2]} 50. c5 {[%clk 0:00:08.2]} 50... g5 {[%clk 0:00:47.1]} 51. Nxg5
{[%clk 0:00:06.6]} 51... Kxg5 {[%clk 0:00:43.8]} 52. c6 {[%clk 0:00:06.5]} 52...
Nd5+ {[%clk 0:00:41.4]} 53. Kc5 {[%clk 0:00:04.5]} 53... Nc7 {[%clk 0:00:39.7]}
54. Kd6 {[%clk 0:00:03.5]} 54... Nb5+ {[%clk 0:00:36.6]} 55. Kc5 {[%clk
0:00:02.1]} 55... Kf6 {[%clk 0:00:32.1]} 0-1

[Event "Live Chess"]
[Site "Chess.com"]
[Date "2024.06.01"]
[Round "-"]
[White "Cruiseylee78"]
[Black "grillage"]
[Result "0-1"]
[WhiteElo "1688"]
[BlackElo "1876"]
[TimeControl "300"]
[EndTime "12:31:51 PDT"]
[Termination "grillage won by resignation"]

1. d4 {[%clk 0:04:58.6]} 1... e6 {[%clk 0:04:58.4]} 2. Bf4 {[%clk 0:04:57.9]}
2... Nf6 {[%clk 0:04:56.3]} 3. e3 {[%clk 0:04:57.5]} 3... c5 {[%clk 0:04:54]} 4.
Nf3 {[%clk 0:04:56]} 4... cxd4 {[%clk 0:04:52.6]} 5. exd4 {[%clk 0:04:55.9]}
5... Be7 {[%clk 0:04:49.6]} 6. Bd3 {[%clk 0:04:55.1]} 6... b6 {[%clk 0:04:48.8]}
7. c3 {[%clk 0:04:54.4]} 7... Ba6 {[%clk 0:04:47.9]} 8. Bc2 {[%clk 0:04:50.2]}
8... O-O {[%clk 0:04:43.2]} 9. Nbd2 {[%clk 0:04:49.3]} 9... d6 {[%clk
0:04:40.3]} 10. Bb3 {[%clk 0:04:39.4]} 10... Nbd7 {[%clk 0:04:37.5]} 11. Qc2
{[%clk 0:04:38.6]} 11... Rc8 {[%clk 0:04:33.8]} 12. O-O-O {[%clk 0:04:36.5]}
12... b5 {[%clk 0:04:22.2]} 13. Kb1 {[%clk 0:04:30.3]} 13... b4 {[%clk
0:04:20.2]} 14. c4 {[%clk 0:04:29.1]} 14... Bb7 {[%clk 0:03:44]} 15. Ng5 {[%clk
0:04:26.8]} 15... h6 {[%clk 0:03:39.7]} 16. Ngf3 {[%clk 0:04:24.4]} 16... a5
{[%clk 0:03:36.9]} 17. Rhg1 {[%clk 0:04:13.6]} 17... Nb6 {[%clk 0:03:32]} 18. g4
{[%clk 0:04:02.8]} 18... a4 {[%clk 0:03:29.5]} 19. Bxa4 {[%clk 0:04:01.9]} 19...
Nxc4 {[%clk 0:03:26.5]} 20. Nxc4 {[%clk 0:03:57.9]} 20... Be4 {[%clk 0:03:21.5]}
21. Rd3 {[%clk 0:03:55.3]} 21... d5 {[%clk 0:03:10.4]} 22. Nfe5 {[%clk
0:03:27.3]} 22... dxc4 {[%clk 0:03:05]} 23. Nxc4 {[%clk 0:03:25.4]} 23... Nd5
{[%clk 0:02:59.6]} 24. g5 {[%clk 0:03:16.9]} 24... Nxf4 {[%clk 0:02:56.2]} 25.
gxh6 {[%clk 0:03:13.3]} 25... g6 {[%clk 0:02:53.6]} 26. Ne5 {[%clk 0:03:03.6]}
0-1

[Event "Live Chess"]
[Site "Chess.com"]
[Date "2024.06.01"]
[Round "-"]
[White "mrsmarple1968"]
[Black "PatientChessPapa"]
[Result "1-0"]
[WhiteElo "1739"]
[BlackElo "776"]
[TimeControl "300"]
[EndTime "12:32:12 PDT"]
[Termination "mrsmarple1968 won on time"]

1. e4 {[%clk 0:04:54.9]} 1... c5 {[%clk 0:04:57.9]} 2. Nc3 {[%clk 0:04:52]} 2...
a6 {[%clk 0:04:52.5]} 3. g3 {[%clk 0:04:49.2]} 3... b5 {[%clk 0:04:28]} 4. d3
{[%clk 0:04:42.7]} 4... Bb7 {[%clk 0:04:22.3]} 5. Bg2 {[%clk 0:04:40.3]} 5... e6
{[%clk 0:04:13.6]} 6. Nf3 {[%clk 0:04:34.5]} 6... d5 {[%clk 0:04:01.9]} 7. O-O
{[%clk 0:04:31.4]} 7... d4 {[%clk 0:03:52.4]} 8. Ne2 {[%clk 0:04:26]} 8... Nf6
{[%clk 0:03:41.7]} 9. c3 {[%clk 0:04:06.7]} 9... Nc6 {[%clk 0:03:38.1]} 10. a3
{[%clk 0:03:55.7]} 10... e5 {[%clk 0:03:09.8]} 11. h3 {[%clk 0:03:48.7]} 11...
Be7 {[%clk 0:03:01.7]} 12. Nh2 {[%clk 0:03:44]} 12... h5 {[%clk 0:02:51.9]} 13.
f4 {[%clk 0:03:35.6]} 13... g6 {[%clk 0:02:08.9]} 14. fxe5 {[%clk 0:03:10.1]}
14... Nxe5 {[%clk 0:02:02.1]} 15. Bf4 {[%clk 0:03:07.5]} 15... Nfd7 {[%clk
0:01:33]} 16. Nf3 {[%clk 0:02:46.8]} 16... f6 {[%clk 0:01:20.8]} 17. cxd4 {[%clk
0:02:03.1]} 17... cxd4 {[%clk 0:01:13]} 18. Nexd4 {[%clk 0:01:59.6]} 18... Qb6
{[%clk 0:00:59.1]} 19. Kh2 {[%clk 0:01:44.6]} 19... Rc8 {[%clk 0:00:19]} 20. Qd2
{[%clk 0:01:36.9]} 20... Bc5 {[%clk 0:00:12.3]} 21. Nb3 {[%clk 0:01:28.4]} 1-0

[Event "Live Chess"]
[Site "Chess.com"]
[Date "2024.06.01"]
[Round "-"]
[White "FlyingChessKestrel13"]
[Black "Ferrarifan27"]
[Result "1/2-1/2"]
[WhiteElo "2078"]
[BlackElo "2060"]
[TimeControl "300"]
[EndTime "12:32:32 PDT"]
[Termination "Game drawn - insufficient material"]

1. e4 {[%clk 0:04:57.2]} 1... e5 {[%clk 0:04:57.9]} 2. Nf3 {[%clk 0:04:55.9]}
2... Nc6 {[%clk 0:04:57.2]} 3. Bb5 {[%clk 0:04:54.9]} 3... a6 {[%clk 0:04:56.2]}
4. Ba4 {[%clk 0:04:54]} 4... Nf6 {[%clk 0:04:55.3]} 5. d3 {[%clk 0:04:52.2]}
5... b5 {[%clk 0:04:52.1]} 6. Bb3 {[%clk 0:04:50.8]} 6... Bc5 {[%clk 0:04:51.6]}
7. O-O {[%clk 0:04:49.4]} 7... d6 {[%clk 0:04:46.3]} 8. c3 {[%clk 0:04:48.6]}
8... O-O {[%clk 0:04:44.1]} 9. d4 {[%clk 0:04:46.6]} 9... exd4 {[%clk
0:04:42.6]} 10. cxd4 {[%clk 0:04:45.4]} 10... Bb6 {[%clk 0:04:41.9]} 11. Bg5
{[%clk 0:04:41.1]} 11... h6 {[%clk 0:04:38.8]} 12. Bxf6 {[%clk 0:04:39.7]} 12...
Qxf6 {[%clk 0:04:36.9]} 13. Bd5 {[%clk 0:04:38.8]} 13... Bb7 {[%clk 0:04:35.4]}
14. e5 {[%clk 0:04:34.2]} 14... dxe5 {[%clk 0:04:33.2]} 15. dxe5 {[%clk
0:04:33.5]} 15... Qg6 {[%clk 0:04:28.2]} 16. Qe2 {[%clk 0:04:21.8]} 16... Rad8
{[%clk 0:04:23.6]} 17. Be4 {[%clk 0:04:19.4]} 17... Qe6 {[%clk 0:04:19.9]} 18.
Nc3 {[%clk 0:04:14.2]} 18... Ba8 {[%clk 0:04:12.7]} 19. Rad1 {[%clk 0:04:11.1]}
19... Nd4 {[%clk 0:04:09.3]} 20. Nxd4 {[%clk 0:04:08.9]} 20... Bxd4 {[%clk
0:04:09.2]} 21. Bxa8 {[%clk 0:04:07]} 21... Bxc3 {[%clk 0:04:08.3]} 22. Rxd8
{[%clk 0:04:01.5]} 22... Rxd8 {[%clk 0:04:05.8]} 23. bxc3 {[%clk 0:03:54.8]}
23... Rxa8 {[%clk 0:04:04.5]} 24. f4 {[%clk 0:03:52.9]} 24... Rd8 {[%clk
0:04:01]} 25. f5 {[%clk 0:03:51.2]} 25... Qb6+ {[%clk 0:03:59.9]} 26. Kh1 {[%clk
0:03:49.9]} 26... Qc5 {[%clk 0:03:53.9]} 27. f6 {[%clk 0:03:36]} 27... Re8
{[%clk 0:03:36.4]} 28. fxg7 {[%clk 0:03:00.5]} 28... Qxe5 {[%clk 0:03:32.7]} 29.
Qf3 {[%clk 0:02:51.8]} 29... Qxg7 {[%clk 0:03:31.3]} 30. h3 {[%clk 0:02:51]}
30... Re6 {[%clk 0:03:21.5]} 31. Qa8+ {[%clk 0:02:47.1]} 31... Kh7 {[%clk
0:03:19.1]} 32. Qb7 {[%clk 0:02:43]} 32... Re2 {[%clk 0:03:04.6]} 33. Qf3 {[%clk
0:02:38.2]} 33... Rxa2 {[%clk 0:02:59.3]} 34. Qe4+ {[%clk 0:02:31.2]} 34... Kh8
{[%clk 0:02:42.6]} 35. Rd1 {[%clk 0:02:25.3]} 35... Qf6 {[%clk 0:02:17.6]} 36.
Rd3 {[%clk 0:02:09.9]} 36... Qg6 {[%clk 0:01:44.8]} 37. Qd4+ {[%clk 0:02:01.6]}
37... Kh7 {[%clk 0:01:41]} 38. Qd5 {[%clk 0:01:56.1]} 38... Ra1+ {[%clk
0:01:36.8]} 39. Kh2 {[%clk 0:01:54.2]} 39... Qd6+ {[%clk 0:01:35.5]} 40. Qxd6
{[%clk 0:01:52.6]} 40... cxd6 {[%clk 0:01:35.4]} 41. Rxd6 {[%clk 0:01:51.7]}
41... Rc1 {[%clk 0:01:27.6]} 42. Rxa6 {[%clk 0:01:49.3]} 42... Rxc3 {[%clk
0:01:26.7]} 43. Rb6 {[%clk 0:01:48.7]} 43... Rb3 {[%clk 0:01:25.5]} 44. Kg1
{[%clk 0:01:47.7]} 44... Rb2 {[%clk 0:01:22.7]} 45. g4 {[%clk 0:01:46.1]} 45...
b4 {[%clk 0:01:21.6]} 46. h4 {[%clk 0:01:44.2]} 46... b3 {[%clk 0:01:20.7]} 47.
g5 {[%clk 0:01:41.1]} 47... hxg5 {[%clk 0:01:16.3]} 48. hxg5 {[%clk 0:01:40.7]}
48... Kg7 {[%clk 0:01:15.3]} 49. Kh1 {[%clk 0:01:37.1]} 49... Rb1+ {[%clk
0:01:13.3]} 50. Kg2 {[%clk 0:01:36.3]} 50... b2 {[%clk 0:01:12.1]} 51. Kh2
{[%clk 0:01:34.8]} 51... Kf8 {[%clk 0:01:08.6]} 52. Kg2 {[%clk 0:01:33.6]} 52...
Ke7 {[%clk 0:01:07.7]} 53. Kh2 {[%clk 0:01:31.8]} 53... Kd8 {[%clk 0:01:05]} 54.
Rb3 {[%clk 0:01:29.4]} 54... Kd7 {[%clk 0:01:01.6]} 55. Rd3+ {[%clk 0:01:28.2]}
55... Ke6 {[%clk 0:01:00.4]} 56. Rb3 {[%clk 0:01:23.2]} 56... Kd5 {[%clk
0:00:58.2]} 57. Rb8 {[%clk 0:01:16.4]} 57... Ke4 {[%clk 0:00:51.8]} 58. Kg2
{[%clk 0:01:12.3]} 58... Kf4 {[%clk 0:00:36]} 59. Rb5 {[%clk 0:01:10.4]} 59...
Rc1 {[%clk 0:00:20.6]} 60. Rxb2 {[%clk 0:01:08.1]} 60... Kxg5 {[%clk 0:00:19.9]}
61. Rb4 {[%clk 0:01:05]} 61... f5 {[%clk 0:00:16.5]} 62. Kf3 {[%clk 0:01:03.6]}
62... Rc3+ {[%clk 0:00:15.4]} 63. Kf2 {[%clk 0:01:02.9]} 63... f4 {[%clk
0:00:14.7]} 64. Rb8 {[%clk 0:01:01.3]} 64... f3 {[%clk 0:00:12.8]} 65. Rg8+
{[%clk 0:01:00.1]} 65... Kf4 {[%clk 0:00:12]} 66. Rf8+ {[%clk 0:00:59.5]} 66...
Ke4 {[%clk 0:00:11.4]} 67. Re8+ {[%clk 0:00:58.9]} 67... Kd5 {[%clk 0:00:10.8]}
68. Rf8 {[%clk 0:00:58]} 68... Ke6 {[%clk 0:00:10.1]} 69. Rxf3 {[%clk
0:00:56.8]} 69... Rxf3+ {[%clk 0:00:09]} 70. Kxf3 {[%clk 0:00:56.3]} 1/2-1/2

[Event "Live Chess"]
[Site "Chess.com"]
[Date "2024.06.01"]
[Round "-"]
[White "missedJariChance"]
[Black "WelshTiger"]
[Result "0-1"]
[WhiteElo "1341"]
[BlackElo "2542"]
[TimeControl "300"]
[EndTime "12:32:33 PDT"]
[Termination "WelshTiger won by resignation"]

1. b3 {[%clk 0:04:53.5]} 1... a6 {[%clk 0:04:57.6]} 2. Bb2 {[%clk 0:04:52.6]}
2... Nc6 {[%clk 0:04:56.9]} 3. Nf3 {[%clk 0:04:51.4]} 3... d6 {[%clk 0:04:52.9]}
4. e3 {[%clk 0:04:50.1]} 4... e5 {[%clk 0:04:51.8]} 5. c4 {[%clk 0:04:48.5]}
5... Nf6 {[%clk 0:04:48.8]} 6. Be2 {[%clk 0:04:47.2]} 6... Be7 {[%clk
0:04:47.6]} 7. O-O {[%clk 0:04:43.3]} 7... O-O {[%clk 0:04:46.7]} 8. Nc3 {[%clk
0:04:36.9]} 8... Re8 {[%clk 0:04:46.1]} 9. d4 {[%clk 0:04:35.2]} 9... exd4
{[%clk 0:04:43]} 10. exd4 {[%clk 0:04:33.5]} 10... d5 {[%clk 0:04:42.4]} 11. Qc2
{[%clk 0:04:28.3]} 11... Bg4 {[%clk 0:04:35.8]} 12. Rfe1 {[%clk 0:04:26.6]}
12... Bb4 {[%clk 0:04:32.8]} 13. Rad1 {[%clk 0:04:19.7]} 13... Bxc3 {[%clk
0:04:01.3]} 14. Bxc3 {[%clk 0:04:13.2]} 14... Bxf3 {[%clk 0:03:45.7]} 15. Bxf3
{[%clk 0:04:07.9]} 15... Ne7 {[%clk 0:03:45.4]} 16. Re3 {[%clk 0:03:49.4]} 16...
c6 {[%clk 0:03:37.2]} 17. Rde1 {[%clk 0:03:47.9]} 17... Qd7 {[%clk 0:03:36.8]}
18. h3 {[%clk 0:03:45.1]} 18... Ng6 {[%clk 0:03:32.3]} 19. cxd5 {[%clk
0:03:30.3]} 19... Nxd5 {[%clk 0:03:29.5]} 20. Bg4 {[%clk 0:03:21.4]} 20... Nxe3
{[%clk 0:03:03.8]} 21. Rxe3 {[%clk 0:03:06.1]} 21... Qd6 {[%clk 0:02:57.2]} 22.
Kf1 {[%clk 0:02:15.2]} 22... Rxe3 {[%clk 0:02:49.6]} 23. fxe3 {[%clk 0:02:13.9]}
23... Re8 {[%clk 0:02:49.3]} 24. Ke2 {[%clk 0:02:09.8]} 24... Qg3 {[%clk
0:02:48.1]} 25. Bf3 {[%clk 0:02:06.2]} 25... Nh4 {[%clk 0:02:47.2]} 26. Kd3
{[%clk 0:02:03.3]} 26... Nxf3 {[%clk 0:02:42.6]} 27. gxf3 {[%clk 0:02:00.4]}
27... Qxf3 {[%clk 0:02:41.5]} 0-1